Cogmind - Beta 9.4 @@@ ROGUE MODE // 2020.01.09 @ 23:39:19 // Winter2019/RPGLIKE Player: FontPeg Result: Smashed by cave-in Performance ------------- Evolutions (4) 2000 Regions Visited (6) 1200 Robots Destroyed (97) 485 Value Destroyed (3038) 3038 Prototype IDs (10) 200 Alien Tech Used (0) 0 Bonus (143) 143 TOTAL SCORE: 7066 Bonus ------- High Alert Combat Kills 143 Cogmind --------- Core Integrity 0/1000 Matter 265/300 Energy 430/440 System Corruption 4% Temperature Cool (20) Movement Flying (23) Location -6/Factory Parts ------- > --- POWER (2) -------- Improved Deuterium Engine Light Angular Momentum Engine > --- PROPULSION (5) --- Improved Flight Unit Improved VTOL Module Improved VTOL Module Improved VTOL Module Cooled VTOL Module > --- UTILITY (4) ------ Advanced Sensor Array Advanced Signal Interpreter Advanced Targeting Computer Advanced Targeting Computer > --- WEAPON (4) ------- Heavy Plasma Cannon Heavy Plasma Cannon Spear > --- INVENTORY (3) ---- Advanced ECM Suite Hacking Suite Plasma Cannon Peak State ------------ > --- POWER ------------ Improved Deuterium Engine Light Angular Momentum Engine > --- PROPULSION ------- Improved Flight Unit Improved VTOL Module Improved VTOL Module Improved VTOL Module Cooled VTOL Module > --- UTILITY ---------- Advanced Sensor Array Advanced Signal Interpreter Advanced Targeting Computer Advanced Targeting Computer > --- WEAPON ----------- Heavy Plasma Cannon Heavy Plasma Cannon Spear > --- INVENTORY -------- Advanced ECM Suite Hacking Suite Plasma Cannon [Rating: 56] Favorites ----------- Power Light Ion Engine Engine Light Ion Engine Power Core Light Nuclear Core Propulsion Flight Unit Wheel Wheel Flight Unit Flight Unit Utility Advanced Targeting Computer Device Advanced Sensor Array Processor Advanced Targeting Computer Weapon Advanced Beam Cannon Energy Gun EM Pulse Gun Energy Cannon Advanced Beam Cannon Ballistic Gun Light Assault Rifle Launcher Improved Grenade Launcher Impact Weapon Powered Hammer Piercing Weapon Spear Build | -11 -10 -9 -9 -8 -7 -6 ------- Run | Scr Mat Mat Min Mat Fac Fac Slots Evolved 11 | 2 2 2 3 . . 2 Power 1 | . . . 1 . . . Propulsion 4 | . 2 . 1 . . 1 Utility 3 | . . 2 1 . . . Weapon 3 | 2 . . . . . 1 Parts Attached 57 | 5 6 8 5 9 14 10 Power 7 | 1 . 2 1 . 2 1 Engine 6 | 1 . 2 1 . 1 1 Core 1 | . . . . . 1 . Reactor . | . . . . . . . Propulsion 16 | 1 3 . 2 2 4 4 Treads . | . . . . . . . Leg . | . . . . . . . Wheel 1 | 1 . . . . . . Hover . | . . . . . . . Flight 15 | . 3 . 2 2 4 4 Utility 12 | . 2 2 2 5 1 . Device 7 | . 1 1 1 3 1 . Storage . | . . . . . . . Processor 5 | . 1 1 1 2 . . Hackware . | . . . . . . . Protection . | . . . . . . . Artifact . | . . . . . . . Weapon 22 | 3 1 4 . 2 7 5 Energy Gun 3 | 1 . . . . 2 . Energy Cannon 12 | . . 3 . 1 5 3 Ballistic Gun 2 | 2 . . . . . . Ballistic Cannon . | . . . . . . . Launcher 3 | . 1 1 . 1 . . Special Weapon . | . . . . . . . Impact Weapon 1 | . . . . . . 1 Slashing Weapon . | . . . . . . . Piercing Weapon 1 | . . . . . . 1 Special Melee Weapon . | . . . . . . . Unidentified Prototypes 5 | . . 1 . . 3 1 Parts Lost 1 | . . . . . . 1 Power . | . . . . . . . Propulsion . | . . . . . . . Utility . | . . . . . . . Weapon 1 | . . . . . . 1 Highest Loss Streak 1 | . . . . . . 1 Average Slot Usage (%) 96 | . 98 100 100 100 94 91 Engine 11 | . 15 10 14 15 8 7 Wheel 2 | . 15 . . . . . Flight 25 | . 1 30 30 30 30 32 Device 7 | . 6 8 13 7 7 6 Processor 18 | . 7 19 16 23 23 20 Energy Gun 3 | . 15 3 . . . . Energy Cannon 11 | . . 14 15 15 14 13 Ballistic Gun 3 | . 16 3 . . . . Launcher 8 | . 15 10 7 7 7 4 Naked Turns . | . . . . . . . Heaviest Build 40 | 7 10 22 20 21 28 40 Greatest Support 44 | 15 17 17 21 22 29 44 Greatest Overweight (x) 1 | . . 1 . . 1 . Average Overweight (x) . | . . . . . . . Largest Inventory Capacity 3 | . . 1 1 1 3 3 Average Capacity 1 | . . . 1 1 2 3 Most Carried 3 | . . 1 1 1 3 3 Average Carried 1 | . . . . . 2 2 Final Capacity 3 | . . 1 1 1 3 3 Final Carried 3 | . . 1 1 1 3 3 Class Distribution -------------------- 37% | Hacker-Sprinter 25% | Gunner 17% | Hacker-Scout 8% | Scavenger-Sprinter 7% | Mutant Dominant Class ---------------- Gunner | -10/Materials Gunner | -9/Materials Scavenger-Sprinter | -9/Mines Hacker-Sprinter | -8/Materials Hacker-Sprinter | -7/Factory Hacker-Scout | -6/Factory Resources | -11 -10 -9 -9 -8 -7 -6 ----------- Run | Scr Mat Mat Min Mat Fac Fac Matter Collected 1398 | 187 272 157 154 266 175 187 Remotely . | . . . . . . . Salvage Created 2514 | . 242 380 13 842 530 507 Parts 197 | . 34 49 9 50 37 18 Haulers Intercepted 8 | . 1 2 . 2 1 2 Recyclers Shooed 1 | . 1 . . . . . Parts Field Recycled . | . . . . . . . Retrieved Matter . | . . . . . . . Parts Self-Destructed . | . . . . . . . Prevented . | . . . . . . . Kills | -11 -10 -9 -9 -8 -7 -6 ------- Run | Scr Mat Mat Min Mat Fac Fac Combat Hostiles Destroyed 66 | . 9 12 8 14 16 7 Melee 1 | . . . . . . 1 Guns 2 | . 1 1 . . . . Cannons 26 | . . 3 2 12 6 3 AOE 36 | . 8 8 6 2 10 2 Classes Destroyed 14 | . 7 2 2 1 1 1 Worker 7 | . 2 3 . 1 . 1 Builder 5 | . 2 1 1 . 1 . Tunneler 1 | . 1 . . . . . Hauler 8 | . 1 2 . 2 1 2 Operator 2 | . 1 1 . . . . Watcher 8 | . 2 3 . 3 . . Swarmer 13 | . . 5 4 . 4 . Grunt 38 | . 9 4 . 9 11 5 Brawler 1 | . . . . 1 . . Sentry 8 | . . 3 . 4 . 1 Demolisher 1 | . . . 1 . . . Hunter 1 | . . . . . . 1 Programmer 1 | . . . . . 1 . Assembled 3 | . . . 3 . . . Best Kill Streak 16 | . 7 12 16 5 11 7 Combat Bots Only 11 | . 3 7 11 5 11 4 Max Kills in Single Turn 4 | . 3 4 2 1 4 1 Gunslinging . | . . . . . . . Exploded 4 | . 3 2 2 1 4 1 Melee 1 | . . . . . . 1 Uniques/NPCs Destroyed . | . . . . . . . Combat | -11 -10 -9 -9 -8 -7 -6 -------- Run | Scr Mat Mat Min Mat Fac Fac Damage Taken 2849 | . 525 211 360 360 445 948 Core 2297 | . 423 170 297 280 359 768 Absorbed by Shields . | . . . . . . . Redirected to Core 1909 | . 341 130 225 266 295 652 Core Remaining (%) 58 | 100 67 . 35 46 42 . Volleys Fired 167 | . 30 26 8 41 29 33 Largest 3 | . 3 3 3 3 3 3 Hottest 216 | . 90 166 166 172 184 216 Shots Fired 376 | . 83 55 15 88 66 69 Gun 70 | . 60 10 . . . . Cannon 248 | . . 34 8 82 58 66 Launcher 58 | . 23 11 7 6 8 3 Special . | . . . . . . . Kinetic 35 | . 30 5 . . . . Thermal 248 | . . 34 8 82 58 66 Explosive 58 | . 23 11 7 6 8 3 Electromagnetic 35 | . 30 5 . . . . Robot Hit Streak 19 | . 5 7 3 11 9 19 Robot Miss Streak 3 | . 3 3 2 3 2 1 Penetration Max . | . . . . . . . Secondary Targets . | . . . . . . . Shots Hit Robots 188 | . 28 29 7 49 37 38 Core Hits 178 | . 37 29 19 38 35 20 Critical Hits 14 | . . 1 2 9 2 . Critical Kills 7 | . . . 2 5 . . Critical Parts Destroyed 7 | . . 1 . 4 2 . Melee Attacks 12 | . . . . . . 12 Impact 3 | . . . . . . 3 Slashing . | . . . . . . . Piercing 9 | . . . . . . 9 Sneak Attacks . | . . . . . . . Combat Hostiles . | . . . . . . . Follow-up Attacks . | . . . . . . . Damage Inflicted 8429 | . 1872 1048 485 1652 1664 1708 Guns 311 | . 244 67 . . . . Cannons 3364 | . . 287 61 1150 728 1138 Explosions 4630 | . 1628 693 424 502 936 447 Melee 123 | . . . . . . 123 Ramming 1 | . . 1 . . . . Kinetic 125 | . 102 23 . . . . Thermal 4069 | . 705 287 61 1150 728 1138 Explosive 3919 | . 923 687 424 502 936 447 Electromagnetic 192 | . 142 50 . . . . Impact . | . . . . . . . Slashing . | . . . . . . . Piercing 123 | . . . . . . 123 Highest Corruption 4 | . . . . . 1 4 Average Corruption 1 | . . . . . 1 3 Corruption Purged . | . . . . . . . Effects 2 | . . . . . . 2 Matter Fused 1 | . . . . . . 1 Targeting Errors 1 | . . . . . . 1 Overload Shots . | . . . . . . . Overflow Damage 233 | . 150 18 15 . 19 31 Projectiles 23 | . . 1 . . . 22 Explosions 210 | . 150 17 15 . 19 9 Melee . | . . . . . . . Knockbacks . | . . . . . . . Impact . | . . . . . . . Kinetic . | . . . . . . . Secondary . | . . . . . . . Self-Inflicted Damage 511 | . 196 19 58 . 49 189 Shots 13 | . 6 1 2 . 1 3 Rammed 1 | . . 1 . . . . Targets Rammed 1 | . . 1 . . . . Kicked . | . . . . . . . Crushed . | . . . . . . . Highest Temperature 480 | . 16 135 238 480 25 104 Average Temperature 82 | . 16 48 110 177 12 38 Received Heat Transfer 750 | . 186 33 . 180 171 180 Effects 2 | . . . . 2 . . Shutdowns 2 | . . . . 2 . . Siege Activations . | . . . . . . . Robots Corrupted . | . . . . . . . Combat Hostiles . | . . . . . . . Parts Fried . | . . . . . . . Impact Corruptions . | . . . . . . . Robots Melted 1 | . . . . . . 1 Combat Hostiles 1 | . . . . . . 1 Parts Melted 9 | . 1 . . 2 1 5 Heat Transferred 6172 | . 550 518 111 2072 1221 1700 Parts Sabotaged . | . . . . . . . Parts Stolen . | . . . . . . . Parts Stripped . | . . . . . . . Power Chain Reactions 1 | . . 1 . . . . Missiles Intercepted . | . . . . . . . Alert | -11 -10 -9 -9 -8 -7 -6 ------- Run | Scr Mat Mat Min Mat Fac Fac Peak Influence 636 | . 437 477 326 636 524 499 Average Influence 241 | . 225 142 308 347 210 245 Maximum Alert Level 2 | . 2 2 1 2 2 2 Low Security (%) 44 | 100 50 81 . 12 76 26 Level 1 38 | . 33 16 100 43 5 63 Level 2 16 | . 16 2 . 44 18 10 Level 3 . | . . . . . . . Level 4 . | . . . . . . . Level 5 . | . . . . . . . High Security . | . . . . . . . Max Security . | . . . . . . . Squads Dispatched 14 | . 4 1 . . 3 6 Investigation 4 | . 1 . . . . 3 Extermination . | . . . . . . . Reinforcement 9 | . 3 1 . . 3 2 Assault . | . . . . . . . Garrison 1 | . . . . . . 1 Intercept . | . . . . . . . Construction Impeded 2 | . . 1 . . 1 . Haulers Reinforced 3 | . . . . . 1 2 Stealth | -11 -10 -9 -9 -8 -7 -6 --------- Run | Scr Mat Mat Min Mat Fac Fac Distress Signals 6 | . 1 4 . 1 . . Communications Jammed . | . . . . . . . Distress Signals . | . . . . . . . Times Spotted 108 | . 23 19 9 24 23 10 Peak Tracking Total 8 | . 5 7 5 5 8 4 Tactical Retreats 8 | . 4 . . 3 1 . Traps | -11 -10 -9 -9 -8 -7 -6 ------- Run | Scr Mat Mat Min Mat Fac Fac Traps Triggered 1 | . . . . . . 1 Indirectly . | . . . . . . . Trap Hack Attempts . | . . . . . . . Triggered . | . . . . . . . Disarmed . | . . . . . . . Reprogrammed . | . . . . . . . Reused . | . . . . . . . Traps Extracted . | . . . . . . . Installed . | . . . . . . . Triggered . | . . . . . . . Machines | -11 -10 -9 -9 -8 -7 -6 ---------- Run | Scr Mat Mat Min Mat Fac Fac Machines Disabled 36 | . 10 6 . 5 2 13 Max in Single Turn 8 | . 3 4 . 3 1 8 Garrison Access 4 | . . . . 1 1 2 Machines Sabotaged . | . . . . . . . Garrisons Compromised . | . . . . . . . Overloaded Fab Kills . | . . . . . . . Fab Network Shutdowns . | . . . . . . . Hacking | -11 -10 -9 -9 -8 -7 -6 --------- Run | Scr Mat Mat Min Mat Fac Fac Machines Accessed 20 | . 3 1 . 4 4 8 Terminals 13 | . 3 1 . 2 3 4 Fabricators . | . . . . . . . Repair Stations . | . . . . . . . Recycling Units . | . . . . . . . Scanalyzers 3 | . . . . 1 . 2 Garrison Access 4 | . . . . 1 1 2 Total Hacks 73 | . 19 4 . 14 9 27 Successful 52 | . 13 4 . 12 6 17 Failed 21 | . 6 . . 2 3 10 Catastrophic 1 | . . . . . . 1 Database Lockouts . | . . . . . . . Manual 35 | . 10 3 . 7 5 10 Terminals 55 | . 19 4 . 7 8 17 Fabricators . | . . . . . . . Repair Stations . | . . . . . . . Recycling Units . | . . . . . . . Scanalyzers 13 | . . . . 6 . 7 Garrison Access 5 | . . . . 1 1 3 Terminal Hacks 25 | . 11 3 . 3 2 6 Part Schematic 2 | . . . . . 1 1 Prototype ID Bank 3 | . 3 . . . . . Branch Access Points 1 | . . 1 . . . . Machine Index 1 | . . . . . . 1 Terminal Index 1 | . 1 . . . . . Alert Level 1 | . 1 . . . . . Unreport Threat 12 | . 2 2 . 3 1 4 Transport Status 1 | . 1 . . . . . Recall Investigation 1 | . 1 . . . . . Recall Reinforcements 2 | . 2 . . . . . Fabricator Hacks . | . . . . . . . Repair Station Hacks . | . . . . . . . Recycling Unit Hacks . | . . . . . . . Scanalyzer 10 | . . . . 6 . 4 Insert Component 5 | . . . . 3 . 2 Analyze 5 | . . . . 3 . 2 Garrison Access Hacks 5 | . . . . 1 1 3 Seal Access 4 | . . . . 1 1 2 Coupler Status 1 | . . . . . . 1 Unauthorized Hacks 27 | . 6 2 . 4 6 9 Terminals 12 | . 2 1 . 2 3 4 Assimilate 2 | . . . . . 1 1 Botnet 10 | . 2 1 . 2 2 3 Fabricators . | . . . . . . . Repair Stations . | . . . . . . . Recycling Units . | . . . . . . . Scanalyzers . | . . . . . . . Garrison Access . | . . . . . . . Data Cores Recovered 1 | . 1 . . . . . Used 1 | . 1 . . . . . Hacking Detections 14 | . 3 1 . 2 3 5 Full Trace Events 5 | . 2 . . . . 3 Feedback Events . | . . . . . . . Feedback Blocked . | . . . . . . . Robot Schematics Acquired . | . . . . . . . Robots Built . | . . . . . . . Matter . | . . . . . . . Time . | . . . . . . . Total Robot Build Rating . | . . . . . . . Part Schematics Acquired 6 | . . . . 2 1 3 Parts Built . | . . . . . . . Matter . | . . . . . . . Time . | . . . . . . . Total Part Build Rating . | . . . . . . . Parts Repaired . | . . . . . . . Time . | . . . . . . . Parts Recycled . | . . . . . . . Recycled Matter . | . . . . . . . Retrieved Matter . | . . . . . . . Retrieved Components . | . . . . . . . Parts Scanalyzed 5 | . . . . 3 . 2 Part Schematics Acquired 4 | . . . . 2 . 2 Parts Damaged . | . . . . . . . Bothacking | -11 -10 -9 -9 -8 -7 -6 ------------ Run | Scr Mat Mat Min Mat Fac Fac Used RIF Installer . | . . . . . . . Robots Hacked . | . . . . . . . Non-combat . | . . . . . . . Combat . | . . . . . . . Robot Hacks Applied . | . . . . . . . Relay Couplers Released . | . . . . . . . Robots Rewired . | . . . . . . . Allies Hacked . | . . . . . . . Hacks Repelled . | . . . . . . . Allies | -11 -10 -9 -9 -8 -7 -6 -------- Run | Scr Mat Mat Min Mat Fac Fac Total Allies 1 | . . . . . 1 . Largest Group 1 | . . . . . 1 1 Highest-Rated Group 10 | . . . . . 10 10 Highest-Rated Ally 10 | . . . . . 10 10 Total Orders 2 | . . . . . 2 . GOTO 1 | . . . . . 1 . FOLLOW 1 | . . . . . 1 . Ally Attacks . | . . . . . . . Total Damage . | . . . . . . . Kills . | . . . . . . . Allies Corrupted . | . . . . . . . Allies Melted . | . . . . . . . Intel | -11 -10 -9 -9 -8 -7 -6 ------- Run | Scr Mat Mat Min Mat Fac Fac Robot Analysis Total . | . . . . . . . Derelict Logs Recovered 2 | . . . 2 . . . Drone Launches . | . . . . . . . Drone Recoveries . | . . . . . . . Exploration | -11 -10 -9 -9 -8 -7 -6 ------------- Run | Scr Mat Mat Min Mat Fac Fac Turns Passed 1935 | 36 368 250 181 346 383 371 Spaces Moved 2546 | 37 354 216 266 439 557 677 Core 3 | 3 . . . . . . Treads . | . . . . . . . Legs . | . . . . . . . Wheels 338 | 34 304 . . . . . Hover . | . . . . . . . Flight 2205 | . 50 216 266 439 557 677 Fastest Speed 20 | 50 34 34 31 31 26 20 Average Speed 37 | 77 73 56 31 31 27 23 Slowest Speed 114 | 80 80 114 34 31 99 26 Overloaded Moves 14 | . . . . . . 14 Propulsion Burnouts . | . . . . . . . Robots Hopped 7 | . . 2 3 . 1 1 Cave-ins Triggered 1 | . . . . . . 1 Exploration Rate (%) 33 | 3 63 20 60 48 16 23 Regions Visited 6 Branch Regions 1 Pre-discovered Areas 1 | . . . 1 . . . Known Exits Taken 4 | . . 1 1 1 1 . Unknown Exits Taken 2 | 1 1 . . . . . Scrap Searched 1 | . . . 1 . . . Spaces Dug 145 | . 39 . . . 5 101 Terrain Destroyed 457 | . 157 78 14 25 49 134 Melee 5 | . . . . . . 5 Projectile 27 | . . . . . . 27 AOE 425 | . 157 78 14 25 49 102 Actions | -11 -10 -9 -9 -8 -7 -6 --------- Run | Scr Mat Mat Min Mat Fac Fac Total 3177 | 41 398 292 347 568 730 801 Wait 284 | . . 27 68 50 96 43 Move 2525 | 36 353 211 259 438 554 674 Hop 7 | . . 2 3 . 1 1 Pick Up 20 | . . 3 2 2 8 5 Fast Attach 25 | 5 6 4 1 2 3 4 Attach 14 | . . 3 2 3 3 3 Detach 6 | . . 2 . 3 . 1 Swap 18 | . . 1 2 4 8 3 Drop 37 | . 3 5 1 7 14 7 Fire 167 | . 30 26 8 41 29 33 Melee 12 | . . . . . . 12 Ram 1 | . . 1 . . . . Kick . | . . . . . . . Crush . | . . . . . . . Escape Stasis . | . . . . . . . Rewire . | . . . . . . . Trap . | . . . . . . . Miscellaneous 61 | . 6 7 1 18 14 15 Route ------- -11/Scrapyard -10/Materials (discovered 3 exits: *Mat x2 / [*Min]) -9/Materials (discovered 3 exits: *Min x2 / Sto) -9/Mines (discovered 2 exits: *Mat x2) -8/Materials -7/Factory -6/Factory History --------- Turn | Location | Event 2 | -11/Scrapyard | Met Revision 17 11 | -11/Scrapyard | Discovered new exit (range 15) 13 | -11/Scrapyard | Upgraded with Weapon slot (x2) 37 | -11/Scrapyard | Entered Materials 148 | -10/Materials | Discovered new exit (range 8) 248 | -10/Materials | Discovered new exit (range 13) 271 | -10/Materials | Reached level 2 361 | -10/Materials | Discovered new exit (range 15) 394 | -10/Materials | Upgraded with Propulsion slot (x2) 405 | -10/Materials | Entered another Materials area 407 | -9/Materials | Reached level 3 432 | -9/Materials | Upgraded with Utility slot (x2) 454 | -9/Materials | Identified exit to Mines 454 | -9/Materials | Identified exit to Storage 642 | -9/Materials | Reached level 4 655 | -9/Materials | Entered Mines 657 | -9/Mines | Reached level 5 663 | -9/Mines | Upgraded with Propulsion slot (x1) 665 | -9/Mines | Upgraded with Power slot (x1) 665 | -9/Mines | Upgraded with Utility slot (x1) 675 | -9/Mines | Assembled infested the area 678 | -9/Mines | Destroyed 11 combat bots 680 | -9/Mines | Assisted by a Guerilla fighting off Assembled 710 | -9/Mines | Core integrity fell below 50% 725 | -9/Mines | Discovered new exit (range 13) 825 | -9/Mines | Discovered new exit (range 11) 835 | -9/Mines | Identified exit to Materials 836 | -9/Mines | Entered Materials 837 | -8/Materials | Core integrity fell below 50% 838 | -8/Materials | Reached level 6 935 | -8/Materials | Reached level 7 1089 | -8/Materials | Discovered new exit (range 3) 1144 | -8/Materials | Build established: Hacker-Sprinter 1182 | -8/Materials | Identified exit to Factory 1182 | -8/Materials | Entered Factory 1183 | -7/Factory | Core integrity fell below 50% 1184 | -7/Factory | Reached level 8 1341 | -7/Factory | Reached level 9 1487 | -7/Factory | Reached level 10 1507 | -7/Factory | Discovered new exit (range 17) 1516 | -7/Factory | Identified exit to Factory 1520 | -7/Factory | Destroyed 11 combat bots 1565 | -7/Factory | Entered another Factory area 1565 | -6/Factory | Accompanied by 1 ally 1566 | -6/Factory | Core integrity fell below 50% 1567 | -6/Factory | Reached level 11 1567 | -6/Factory | Upgraded with Propulsion slot (x1) 1567 | -6/Factory | Upgraded with Weapon slot (x1) 1797 | -6/Factory | Garrison activated, responded to threat 1800 | -6/Factory | Reached level 12 1814 | -6/Factory | Core integrity fell below 20% 1862 | -6/Factory | Build established: Hacker-Scout 1936 | -6/Factory | Crushed by falling debris 1936 | -6/Factory | Smashed by cave-in Last Messages --------------- Scanning: Hacking Suite... Schematic downloaded. 01912_ ALERT: Suspicious activity at Scanalyzer F003. Dispatching Investigation squad. 01912_ Acquired Plasma Cannon. 01921_ Connecting with Scanalyzer... 01921_ Dropped Adv. ECM Suite. 01922_ Connecting with Scanalyzer... >>Insert(Cld. VTOL Module) Scanning Cld. VTOL Module... Ready to analyze. >>Scanalyze Scanning: Cld. VTOL Module... Schematic downloaded. 01922_ ALERT: Suspicious activity at Scanalyzer F004. Dispatching Investigation squad. 01923_ Acquired Adv. ECM Suite. 01929_ System corrupted: Hvy. Plasma Cannon targeting data glitched. 01936_ The unstable cave ceiling collapses. 01936_ Crushed by falling debris. Map ----- +----------------------------------------------------+ | ?????????????????????????????????????????????????? | | ?????????????????????????????????????????????????? | | ?????????????????????????????????????????????????? | | ?????????????????????????????????????????????????? | | ???????????????????g?????????????????????????????? | | ?????????????????g???????????????????????????????? | | ????????????????????g????????????????????????????? | | ?????????????????????g???????????????????????????? | | ?????????????????????????????????????????????????? | | ?????????????????????????????????????????????????? | | ?????????????????????????????????????????????????? | | ?????????????????????????????????????????????????? | | ?????????????????????????????????????????????????? | | ?????????????????????????????????????????????????? | | ?????????????????????????????????????????????????? | | ?????????????????????????????????????????????????? | | ?????????????????????????????????????????????????? | | ?????????????????????????????????????????????????? | | ?????????????????????????????????????????????????? | | ?????????????????????????????????????????????????? | | ?????????????????????????????????????????????????? | | ????????????????????????###??????????????????????? | | ????????????????????????# #??????????????????????? | | ????????????????????????# #??????????????????????? | | ????????????????????????# #??????????????????????? | | ????????????????????????#@#??????????????????????? | | ????????????????????????# #??????????????????????? | | ???????????????????????##;###########????????????? | | ???????????? ?????????# #????????????? | | ????????????? ????????# #????????????? | | ?????????????? ??????# #+##+######### | | ???????????????? ?????# # | | ??????????????####/##### """ # | | ??????????????# gg # """ == + """ | | ??????????????# "" # """ == # """ | | ??????????????# "" ; == # """ | | ??????????????# g"" ; """ ## """ ## | | ??????????????# S # """ ## #? | | ??????????????# "" # """ ! ## +? | | ??????????????# "" # + g #? | | ??????????????# "" ############### g #? | | ??????????????# #?????##########+#########? | | ??????????????##########?????# g #? | | ?????????????????????????????# #? | | ?????????????????????????????# #? | | ?????????????????????????????# #? | | ?????????????????????????????# "" "" """ """ # | | ?????????????????????????????# ""S"" """ """ # | | ?????????????????????????????# """" """ """ # | | ?????????????????????????????# ?#? | +----------------------------------------------------+ Best States ------------- Heat Dissipation 73 Energy Generation 34 Energy Capacity 450 Matter Stores 300 Matter Capacity 300 Sight Range 18 Robot Scan Range 24 Terrain Scan Density 10 ECM Strength 2 Resistance: KI 10 Resistance: TH 5 Resistance: EX 5 Evasion (%) 65 Targeting Accuracy 16 Offensive Hacking 25 Item Schematics ----------------- Adv. Beam Cannon | -8/Materials | Scanalyzed Imp. Sensor Array | -8/Materials | Scanalyzed Nuclear Pulse Array | -7/Factory | Hacked Drone Bay | -6/Factory | Hacked Hacking Suite | -6/Factory | Scanalyzed Cld. VTOL Module | -6/Factory | Scanalyzed Robot Schematics ------------------ None Fabricated ------------ Nothing Alien Tech Used ----------------- None Achievements -------------- None Challenges ------------ None RPGLIKE | -11 -10 -9 -9 -8 -7 -6 --------- Run | Scr Mat Mat Min Mat Fac Fac Levels Raised 11 | . 1 2 1 2 3 2 XP Earned 20437 | 3000 1798 3644 1100 3780 3588 3527 XP Spent 19315 | 2690 1550 1550 3000 3150 2300 5075 Upgrades 52 | 16 4 3 5 8 8 8 Power Slot 1 | . . . 1 . . . Propulsion Slot 4 | . 2 . 1 . . 1 Utility Slot 3 | . . 2 1 . . . Weapon Slot 3 | 2 . . . . . 1 Core Integrity 8 | 8 . . . . . . Heat Dissipation 8 | 3 . . . 5 . . Energy Generation 1 | . . . . . 1 . Energy Storage 2 | . . . . . 2 . Mass Support 3 | 1 . . . . . 2 Inventory Capacity 3 | . . 1 . . 2 . Sight Range 2 | . 1 . . . . 1 Sensor Range 4 | . . . . . 2 2 Hack Attack % 5 | 2 . . . 3 . . KI Resistance % 2 | . . . 1 . . 1 TH Resistance % 1 | . . . 1 . . . EX Resistance % 1 | . 1 . . . . . TH Damage % 1 | . . . . . 1 . Protomatter Created 624 | . 81 85 8 205 131 114 Integrity Restored 1296 | . 102 141 -3 399 315 342 Core 1296 | . 102 141 -3 399 315 342 Protomatter Decayed 55 | . . . 6 49 . . Game ------ Seed SurgeMiningMatrix Manual? 0 Play Time 00:48:53 Cumulative 51.2 hours Start 2020.01.09 @ 22:47:17 End 2020.01.09 @ 23:39:19 Sessions 1 Manual Loads 0 Difficulty Rogue Special Mode Winter2019/RPGLIKE Game No. 75 Rogue 75 Adventurer 0 Explorer 0 Win Type - Total 0 Types 0/0/0/0/0/0/0 Lore% 27 Gallery% 40 Achievement% 31 Wizard Run 0 Options --------- ASCII 0 Keyboard 0 Movement Mouse Keybinds 0 Fullscreen 1 Font 18/X11 Map View 76x50 Tactical HUD 1 Map Filters NONE Filters NONE Steam 1 RUN: f0799cfb-5f01-4890-a0fd-e5053c92ef8d